[Event "E Chess Olympiad 2022"]
[Site "Chess.com"]
[Date "2022.07.29"]
[Round "1"]
[White "Shirov, Alexei"]
[Black "Toczek, Grzegorz"]
[Result "1-0"]
[WhiteElo "2704"]
[BlackElo "2287"]
[ECO "C41"]
[EventDate "2022.??.??"]
[Annotator "rafael"]
[PlyCount "53"]
[Beauty "8251705944095"]
[EventType "team-tourn"]
[EventCountry "FID"]
[TimeControl "5400+30"]

{Shirov's games are famous for their entertainment value and this one is no different. We have a brave opening idea, a very complicated middlegame with chances for both sides, some inaccuracies, combinations, and a beautiful final touch. This legendary player never ceases to amaze us.} 
1.e4 d6 2.d4 Nf6 3.Nc3 e5 4.Nf3 Nbd7 5.g4 $5 {Shirov is fond of playing the g4-move in the opening. White can consider this idea without sacrificing the pawn, playing 5.Rg1 first.} ( 5.Bc4 {is the classical move.} ) ( 5.Rg1 $5 ) 5...Nxg4 $1 {Accepting the gift.} 6.Rg1 Ngf6 7.Bc4 {The g-file is opened and Black has to lose time before finishing the development. The position looks good for White, but it's actually not easy to break Black's defense.} 7...h6 8.dxe5 dxe5 9.Be3 c6 10.Qd3 b5 11.Bb3 ( 11.Bxf7+ $2 {This move finds a neat refutation.} 11...Kxf7 12.Nxe5+ Nxe5 $1 13.Qxd8 Nf3+ 14.Kd1 ( 14.Kf1 Bh3+ ) 14...Nxg1 {with a big advantage for Black.} ) 11...Qa5 12.O-O-O Ba6 13.Nd2 $1 {A difficult but necessary move. White defends against the …b5-b4 advance and prepares to break with f2-f4.} 13...Rd8 ( 13...O-O-O {This is an important alternative.} 14.Bxf7 Nc5 ( 14...b4 $6 15.Nb3 $1 Bxd3 16.Nxa5 Ba6 17.Nb1 {with advantage for White. Todorovic-Solak, Cetinje 2010.} ) 15.Qf1 b4 16.Ne2 Kb8 {with a roughly equal position.} ) 14.Qf1 $1 c5 $2 {A new move.} ( 14...g6 {is possible since White can't advance the f-pawn yet.} 15.f4 $6 b4 16.Nc4 Bc5 $3 {A fantastic resource $1} 17.Bxc5 Qxc5 18.Nd6+ Qxd6 19.Qxa6 Qc5 {and Black was much better in Cmor-Kodric, Ptuj 2014.} ) ( 14...b4 15.Nc4 $1 bxc3 16.Nxa5 cxb2+ 17.Kxb2 Bxf1 18.Rdxf1 {with good compensation for the pawn.} ) ( 14...Nc5 15.Bxc5 Bxc5 16.Rxg7 b4 17.Nc4 Qc7 $1 ( 17...bxc3 $2 18.Nxa5 cxb2+ 19.Kxb2 Bxf1 20.Rxd8+ Kxd8 21.Nb7+ Ke8 22.Nxc5 {with a clear advantage for White in Kuybokarov-Vakhidov, Penang 2016.} ) 18.Rxd8+ Qxd8 {with a complicated game.} ) 15.Nd5 $2 {Shirov doesn't resist a sacrifice, but this is not the best. He had two better moves.} ( 15.f4 $1 {is the most brutal. After} 15...c4 16.fxe5 Nxe5 17.Qf5 $1 {White is winning in all the lines.} 17...Nc6 ( 17...Bd6 18.Rxg7 cxb3 19.Qxf6 bxa2 20.Nxa2 Qxa2 21.Nb3 {with a decisive attack.} ) 18.Nd5 $1 Nxd5 19.exd5 Ne7 20.Qe5 $1 cxb3 21.Nxb3 Qxa2 22.d6 {winning.} ) ( 15.a4 $5 {is more positional, but also good.} 15...bxa4 ( 15...b4 16.Nb5 $18 ) ( 15...c4 16.axb5 $18 ) 16.Bc4 $16 {with a clear advantage.} ) 15...c4 16.Nxc4 bxc4 17.Bxc4 Bb7 $6 ( 17...Bxc4 {is better.} 18.Qxc4 Bd6 $1 {The only move to keep Black's position together.} ( 18...Nxd5 $2 19.Rxd5 Qb4 20.Qc7 {with a strong initiative.} ) 19.Rxg7 Nxd5 20.Rxd5 Qc7 21.Qxc7 Bxc7 22.Bxa7 {White has three pawns for the piece, but objectively Black has the advantage in this endgame.} ) 18.Bd2 ( 18.Nxf6+ $1 Nxf6 19.Bb5+ Nd7 20.Qc4 {with a dangerous initiative.} ) 18...Qc5 19.Bb4 Qc8 20.Ba5 ( 20.Nxf6+ {leads to a draw, but Shirov, naturally, wants more.} 20...Nxf6 21.Bb5+ Bc6 22.Rxd8+ Kxd8 23.Ba5+ Ke7 24.Bb4+ Kd8 $11 ) 20...Nxd5 $2 {White's compensation for the piece is too strong after this mistake} ( 20...Bxd5 $1 21.Bxd5 Be7 22.Bxd8 Bxd8 {and Black is holding. The computer evaluates this as 0.00, as always.} ) 21.Bxd5 Ba6 22.Qh3 Nb6 23.Qh5 $1 {Shirov conducts the initiative with his typical flair.} 23...Rd7 ( 23...Nxd5 24.Qxe5+ Qe6 25.Qd4 $1 Bb7 26.exd5 Rxd5 27.Qxa7 {with a decisive attack.} ) 24.Qxe5+ Re7 25.Qd4 ( 25.Qf4 $18 ) ( 25.Qd6 $18 ) 25...Nxd5 26.Qa4+ $1 ( 26.Qxd5 $6 {is not so clear.} 26...Rd7 27.Qe5+ Be7 ) 26...Qd7 $2 ( 26...Rd7 {was necessary, but White has a winning initiative after} 27.exd5 ) 27.Rxd5 $1 {Beautiful $1} ( 27.Rxd5 Qxa4 28.Rd8# ) 1-0

[Event "Saint Louis Rapid & Blitz 2022"]
[Site "Chess.com"]
[Date "2022.08.27"]
[Round "4"]
[White "Nepomniachtchi, Ian"]
[Black "Mamedyarov, Shakhriyar"]
[Result "1-0"]
[WhiteElo "2792"]
[BlackElo "2758"]
[ECO "E11"]
[EventDate "2022.??.??"]
[Annotator "Rafael Leitão"]
[PlyCount "77"]
[Beauty "7770669590061"]
[EventType "blitz"]
[TimeControl "600+5"]

1.d4 Nf6 2.c4 e6 3.Nf3 d5 4.g3 {The Catalan has become a powerful weapon for Nepomniachtchi. After all the work he had to do in order to play it with Black in the match against Carlsen, no wonder he decided to try it with the other color.} 4...Bb4+ {This check is one of the most reliable options for Black.} 5.Bd2 Be7 6.Bg2 O-O 7.O-O Nbd7 {The point is that the bishop is not well placed on d2 in the lines where Black refrains from taking on c4. With the bishop on c1, White can play b3-Bb2 or Qc2-Nbd2, plans that are not available now.} 8.Qc2 c6 9.h4 $5 {This incredible idea is only White's 16th most popular choice in this position $1 This shows that it's still possible to find fresh ideas even in the most studied openings. But what's the idea of this mysterious move $2 From what I understand, the reasoning is this: 9.Nc3 is premature because Black can take the c4-pawn and then defend it with b7-b5. That's why White makes an useful move and intends to answer 9...b6 (the most natural move) with 10.Nc3. If Black captures the c4-pawn and plays b6-b5 in this case, then White has an extra tempo and the pawn is quite useful on h4.} ( 9.Nc3 dxc4 10.e4 b5 {and Black is ok.} ) 9...b6 10.Nc3 {This is the point. The pawn is useful on h4 in case Black now decides to take on c4.} 10...Ba6 ( 10...Bb7 {is a bit passive, but also playable.} 11.e4 dxe4 ( 11...Nxe4 12.Nxe4 dxe4 13.Qxe4 Nf6 14.Qe2 {is slightly better for White.} ) 12.Ng5 $5 ( 12.Nxe4 c5 $1 {equalizes.} ) 12...c5 13.d5 $1 exd5 14.cxd5 Nxd5 15.Nxd5 Bxd5 16.Rad1 {with compensation for the pawn.} ) ( 10...dxc4 11.e4 b5 {This is still unclear, but the h4-pawn helps the attack.} ) 11.cxd5 cxd5 12.Rfc1 Bb7 $146 {A new move.} ( 12...Qb8 {was tried before,} ) 13.Bf4 Rc8 14.Qb3 a6 15.a4 $1 {Preventing the typical move b5 that gives Black more space on the queenside.} 15...h6 {A useful move, giving some air to the king and taking the g5-square from the white pieces.} 16.e3 {This is a very difficult move to play, but this pawn on e3 will be very helpful for White in a few moves. The problem is that the f4-bishop doesn't have many squares now; it must be ready to be sacrificed in some variations.} ( 16.Rc2 {Is a normal move, but it's not enough for an advantage. Black can try 16...Nh5 or even 16...Nb8 followed by 19...Nc6.} 16...Nb8 $5 ( 16...Nh5 17.Bd2 Rc4 ) ) ( 16.Na2 $5 {Is interesting, planning either Nb4 or the exchange of rooks on the c-file followed by Rc1.} ) 16...Nh5 $6 {It's curious that all moves with this knight are possible and good. Actually this one is my least favorite. The capture on f4 helps White because after he takes with the e-pawn, he gets more space and a clear plan of action.} ( 16...Ne4 {is the most natural. A possible line is:} 17.Nxe4 dxe4 18.Ne5 g5 ( 18...Bd5 {is also good.} ) 19.hxg5 hxg5 20.Rxc8 Qxc8 21.Qd1 $1 gxf4 22.Qg4+ {and the game ends in perpetual check.} ) ( 16...Nh7 {is strange but interesting. The idea is to give some primitive support to the advance g7-g5 and simply try to capture the bishop.} 17.Bh3 $1 {is necessary in order to keep an eye on the e6-pawn.} 17...g5 18.hxg5 hxg5 19.Be5 {with a complicated position.} ) ( 16...Ne8 {This move prepares both the g5 advance and also Nd6, improving the knight's position.} 17.Qd1 $1 {A necessary retreat to avoid 17.. .g5.} 17...Nd6 ( 17...g5 $2 18.hxg5 hxg5 19.Nxg5 $1 Bxg5 20.Qg4 f6 21.Qxe6+ {with a big advantage for White.} ) 18.Rc2 {with chances for both sides.} ) 17.Bh3 ( 17.Qd1 {This move immediately is more accurate, avoiding 17...g5.} 17...g5 $2 18.hxg5 hxg5 19.Nxg5 $1 Bxg5 20.Qxh5 ) 17...Rc4 $6 ( 17...g5 $1 {is a better try.} 18.hxg5 hxg5 19.Be5 Ng7 $1 {Black brings the knight back, defends e6, and prepares f7-f6. In order to save the bishop, White must either capture the knight or play 20.g4. I think Black is fine in both cases.} ( 19...f6 $2 {But not this greedy move.} 20.Bxe6+ Kg7 21.Bxd5 Bxd5 22.Nxd5 Rxc1+ 23.Rxc1 fxe5 24.Nc7 {and White wins.} ) ) 18.Qd1 $1 {Now g5 is avoided because the h5-knight is hanging.} 18...Nxf4 19.exf4 {The pawn structure is now favorable for White. Black has no pawn breaks and is suffocated without an active plan.} 19...Bd6 20.Bf1 $1 {Improving the bishop.} 20...Rc7 21.Bd3 Nf6 22.Qe2 Qa8 23.Ne5 Rfc8 24.f3 {A solid move, taking the e4-square from Black's knight. White's is plan is to attack on the kingside with g4-g5 and so on. Black is helpless against this plan and should seek some desperate counterplay. Notice the awkward placement of the queen on a8, far away from the action. This piece would be much better placed on e7.} 24...h5 25.Qe3 Bb4 26.Rc2 {Nepomniachtchi plays very carefully, reinforcing the position before going for the attack.} 26...g6 ( 26...a5 {with the idea of playing Ba6 is probably the last chance.} ) 27.Rac1 Kg7 28.Bxg6 $1 {A flashy move, well in Nepomniachtchi's style. He has great feeling for the initiative. Both 28.g4 and even 28.f5 are also good.} ( 28.g4 ) ( 28.f5 $5 exf5 29.g4 {and the computer indicates that the attack is winning, but no human plays like this.} ) 28...fxg6 29.Qd3 Ne4 {This is forced. The attack is just too strong if the queen captures the g6-pawn, for instance:} ( 29...Kh8 30.Qxg6 Rf8 31.Ne4 {There are other winning moves.} 31...Rg7 ( 31...Rxc2 32.Nxf6 Rxc1+ 33.Kg2 Rc2+ 34.Kh3 {and White mates.} ) 32.Qh6+ Rh7 33.Ng6+ Kg8 34.Nxf6+ Rxf6 35.Qg5 Qd8 ( 35...Rff7 36.Rc7 $18 ) 36.Ne7+ Kf7 37.Ng8 $1 {A nice final touch.} 37...Qxg8 38.Rc7+ $18 ) 30.fxe4 dxe4 31.Qe3 {Now the material balance is restored, but the attack continues. White is ready for f5 or g4, the e5-knight is a monster, and Black's queen is still out of place on a8.} 31...Bd5 32.g4 {A matter of taste. 32. f5 and 32.Nxd5 also wins.} ( 32.f5 exf5 33.Nxd5 Rxc2 34.Rxc2 Rxc2 35.Nxb4 $18 ) ( 32.Nxd5 Rxc2 33.Rxc2 exd5 ( 33...Rxc2 34.Nxb4 Rxb2 35.Qc1 $1 Rxb4 36.Qc7+ Kh8 37.Qf7 $18 ) 34.Rf2 {followed by f5 and an easy win.} ) 32...hxg4 33.Rg2 $1 Kh7 34.Rxg4 Rg8 35.Kh2 Qc8 36.f5 $1 {The final breakthrough.} 36...gxf5 ( 36...exf5 37.Nxd5 Rxc1 38.Nf6+ {wins.} ) 37.Rxg8 Kxg8 38.Qg5+ Rg7 ( 38...Kf8 39.Qf6+ Ke8 40.Rg1 {and the attack is decisive.} ) 39.Nxd5 $1 {A nice conclusion to a well-played game. Nepomniachtchi is in great form.} ( 39.Nxd5 Qxc1 40.Qd8+ ) 1-0

[Event "Saint Louis Rapid & Blitz 2022"]
[Site "Chess.com"]
[Date "2022.08.30"]
[Round "27"]
[White "Firouzja, Alireza"]
[Black "Dominguez Perez, Leinier"]
[Result "1-0"]
[WhiteElo "2778"]
[BlackElo "2754"]
[ECO "A36"]
[EventDate "2022.??.??"]
[Annotator "Rafael Leitão"]
[PlyCount "73"]
[Beauty "7908112471603"]
[EventType "blitz"]
[TimeControl "180+2"]

1.c4 {Firouzja achieved an insane score playing the English Opening in the blitz part of the tournament.} 1...c5 2.g3 g6 3.Bg2 Bg7 4.Nc3 Nc6 5.d3 d6 6.Qd2 {This move looks funny, but it's typical in this line. White wants to develop with b3 followed by Bb2.} 6...e6 {All types of development are possible here: …e6-Nge7, …e5-Nge7 or simply …Nf6. All roads lead to equality, but in a blitz game that doesn't matter so much.} ( 6...e5 ) ( 6...Nf6 ) 7.b3 Nge7 8.Bb2 O-O 9.Nf3 d5 $1 {White's opening system is somewhat passive and this central push, even though the d-pawn is moved for the second time, fights for the initiative. Other plans are possible as well.} ( 9...b6 10.O-O Bb7 ) ( 9...a6 10.O-O Rb8 ) 10.O-O $6 {Black is already better after this move. Since White's b2-bishop will be out of play in the coming moves, it's better to exchange it right now with} ( 10.Na4 $1 {The position is equal after} 10...Bxb2 11.Qxb2 ) 10...d4 $1 11.Na4 b6 $15 {Both the b2-bishop and the a4-knight are misplaced. Black has a clear plan with …Bb7,...e5 and so on.} 12.e3 e5 13.exd4 exd4 14.a3 a5 {Black is understandably worried with the b4-push, since this gives White counterplay. But after} ( 14...Bb7 15.b4 Qd7 $1 {The knight loses its protection. If now} 16.bxc5 $2 Nd8 $1 17.Qc2 $6 Bc6 {Black wins a piece.} ) 15.Rfe1 Rb8 16.Bc1 $1 {A very good plan, especially for blitz, where it's useful if you have a clear path of action. Firouzja wants to play Qd1 followed by Ra2-e2 and improve his pieces.} 16...h6 17.Qd1 $6 ( 17.h4 $1 {It's important to avoid Black's next move.} ) 17...g5 $1 {Gaining space, taking the f4-square from the bishop and giving an extra square for the knight on g6. Yes, it weakens the king a little. But there is always a price to pay, although it seems to be a small one for all the benefits.} 18.Ra2 Bd7 $6 ( 18...Qd6 $1 {is better, bringing the queen to the action before developing the bishop.} 19.h4 f6 $1 {and Black is fine because the sacrifices on g5 are not dangerous with the queen nearby.} ) 19.h4 $1 g4 ( 19...f6 {Now the sacrifices are very dangerous to meet. White can choose to sacrifice the bishop or the knight.} 20.hxg5 fxg5 21.Bxg5 $1 ( 21.Nxg5 hxg5 22.Bxg5 {also gives some compensation.} ) 21...hxg5 22.Nxg5 {and the computer gives the classic 0.00 (equal) evaluation, but in a blitz game anything can happen. I would prefer to play with the white pieces.} ) 20.Nh2 h5 21.f3 $2 ( 21.Bf4 $1 {is better.} ) 21...Ne5 $2 ( 21...Be5 $1 {gives Black a nearly winning positional advantage. White will be forced to play f3-f4 and his pieces are very poorly placed.} 22.Nf1 ( 22.fxg4 Bxg3 $19 ) 22...Qc7 {and White has to play the sad 23.f4, giving Black a much better pawn structure and more active pieces.} ) 22.fxg4 hxg4 ( 22...Nxg4 23.Nxg4 Bxg4 24.Bf3 $14 ) ( 22...Bxg4 {is better.} 23.Nxg4 Nxg4 {with equal chances.} ) 23.Rae2 ( 23.Rxe5 $1 {White gets some chances to execute the exchange sacrifice before it's finally played in the game.} 23...Bxe5 24.Nxg4 {with good compensation.} ) 23...f6 24.Re4 ( 24.Rxe5 $5 {Again this is interesting.} 24...fxe5 25.Nxg4 Bc6 $1 26.Nh6+ Kh8 27.Qh5 Qe8 $1 {and Black is able to maintain equality.} ) 24...Bc6 $2 {Now Firouzja gets to play the best possible version of the exchange sacrifice.} ( 24...Qc8 $1 {defending the g4-pawn is necessary. But this is a very difficult move to play in a blitz game.} ) 25.Nxg4 $1 {Here it goes. What a delicious move to play $1} 25...Bxe4 26.Rxe4 {White has excellent compensation for the exchange, with a pawn, the light squares and attacking chances.} 26...Nxg4 27.Rxg4 f5 28.Rg5 Rf6 29.Bf4 Rc8 30.Be5 {Firouzja's play is effortless. His moves are natural and good.} 30...Rg6 31.Bd5+ Kf8 ( 31...Nxd5 32.Rxg6 $18 ) 32.Qh5 $1 Bxe5 ( 32...Rxg5 33.Qf7# ) 33.Rxg6 Nxg6 34.Qxg6 Qc7 35.Nxb6 Rd8 36.Qg8+ Ke7 37.Qf7+ {A great game to crown a monumental performance by Firouzja.} 1-0

[Event "Chess.com Global Championship Knockout"]
[Site "Chess.com"]
[Date "2022.09.17"]
[Round "1"]
[White "Mitrabha, Guha"]
[Black "Duda, Jan Krzysztof"]
[Result "0-1"]
[WhiteElo "2471"]
[BlackElo "2731"]
[ECO "A28"]
[EventDate "2022.??.??"]
[Annotator "Rafael Leitão"]
[PlyCount "66"]
[Beauty "8178426989628"]
[EventType "team-tourn"]
[TimeControl "900+2"]

{Duda had no problem winning his match with a perfect score. I consider the young Polish GM one of the favorites to win the tournament.} 
1.c4 e5 2.Nc3 Nf6 3.Nf3 Nc6 4.e4 {This system is very popular nowadays. It was used, for instance, by Niemann in his victory against Mamedyarov in the Sinquefield Cup.} 4...Bb4 {Mamedyarov chose 4...Bc5, a more combative move that leads to complicated positions. The move played by Duda is more reliable.} 5.d3 d6 6.a3 Bc5 $1 {I played many online games with White in this system, and many of my opponents preferred to play 6...Bxc3. Of course, it's too much criticism to call this capture a mistake, but it makes White's play much easier with the bishop pair, good central control, and a clear plan of attack on the kingside.} 7.b4 Bb6 8.Be3 Bg4 9.Be2 O-O 10.O-O Bxf3 11.Bxf3 Nd4 12.Na4 c6 {I found just one game with this move.} ( 12...Nxf3+ {is the main line.} 13.Qxf3 Bxe3 {And now White can capture with the pawn (the move I prefer) or with the queen with equal chances in both cases.} 14.fxe3 ( 14.Qxe3 ) ) 13.Nxb6 axb6 {A new move.} ( 13...Qxb6 {was played in Raahul - Aditya, Abu Dhabi 2022.} ) ( 13...Nxf3+ {This is probably the best option.} 14.Qxf3 axb6 15.d4 Qe7 {with a small advantage for White because of the bishop against knight and more space, but since Black has the open a-file, it's not such a big deal.} ) 14.Bxd4 exd4 15.Qd2 ( 15.g3 {Followed by Bg2 and f4 is very natural.} ) 15...Nd7 16.Bg4 Ne5 17.Bd1 $6 {An unfortunate square for the bishop. Black's plan is to play g7-g5, so the bishop should be ready to land on f5.} ( 17.Bh3 g5 18.Bf5 $1 {And this is a much-improved version for White of the position we will have in the game.} ) 17...g5 $1 {The knight must be secured on its excellent post. Of course, generally, we should not advance the pawns in front of our king, but there is a good reason for this concession. This idea is also very common in the Benoni Defense, among others.} 18.f4 {White decides to open the kingside immediately. The problem with this plan is that now the knight can never be dislodged from e5. It's reasonable to try 18.g3 before playing f4, but this doesn't give an advantage.} ( 18.g3 f5 $5 ( 18...Kh8 {is also possible.} 19.f4 gxf4 20.gxf4 Rg8+ 21.Kh1 Qf6 $1 {with active play for Black.} ) 19.f4 gxf4 20.gxf4 Ng6 {with a good position for Black.} ) 18...gxf4 19.Rxf4 Kh8 20.Rf5 Rg8 21.a4 Rg7 22.Be2 Qh4 23.Rh5 Qe7 {Despite the open g-file and the monster e5-knight, it's not easy for Black to make progress. The computer assesses the position as equal. But Mitrabha had lost the first game, so he evidently was not in the mood for playing safely and making a draw. His attempt to create active play on the queenside, however, will cost him the game.} 24.Qb2 $6 {The queen is better placed on d2, controlling the dark squares around White's king.} ( 24.g3 ) 24...c5 25.a5 $2 {This is too optimistic. Black is ready to start a devastating kingside attack now.} 25...Qf6 ( 25...Rag8 26.g3 f5 $3 {leads to a pretty win, for instance:} 27.Rxf5 ( 27.exf5 Nxd3 $1 28.Bxd3 Qe3+ 29.Qf2 Rxg3+ $1 30.hxg3 Rxg3+ 31.Kf1 Qxd3+ 32.Qe2 Rf3+ 33.Ke1 Qc3+ {and Black wins.} ) 27...Rxg3+ 28.hxg3 Rxg3+ 29.Kf1 Qh4 {and White's king is helpless.} ) 26.Rf5 ( 26.bxc5 Rxg2+ $1 27.Kxg2 Rg8+ 28.Kh1 Qf2 {and Black wins.} ) 26...Qh6 27.axb6 $2 {This allows a decisive combination.} ( 27.bxc5 {is more stubborn.} ) 27...Qe3+ 28.Kf1 ( 28.Kh1 Rxa1+ {This is the reason why 27.axb6 is bad: Black benefits from the opening of the a-file.} 29.Qxa1 Qxe2 ) 28...Rag8 29.g3 ( 29.Rf2 Qxf2+ $1 {Black wins after:} 30.Kxf2 Rxg2+ 31.Ke1 ( 31.Kf1 Rg1+ 32.Kf2 R8g2# ) 31...Nxd3+ 32.Bxd3 Rxb2 ) 29...Rxg3 $1 {This move was begging to be played.} 30.hxg3 Qxg3 {The combined attack of queen, rook, and knight is too strong.} 31.Bf3 Qg1+ 32.Ke2 Qe3+ 33.Kd1 Rg1+ 0-1